{"text_format":"1","workbook":"xlsx","n_sheets":2,"sheets":["T6","Uebersetzungen"],"not_rendered":{"charts":0,"images":0,"macros":1,"external_links":0,"defined_names":0,"comments":0,"pivot_tables":0},"unopened":[],"bounds":{"document_bytes":16777216,"sheet_cells":100000,"rows_first":2000,"rows_last":500,"rows_between":2000,"halvings":0,"cell_chars":16384,"cell_head_chars":4096},"cells_cut":0,"cells_raw":0,"read":"whole","date_system":"1900"}

{"sheet":"T6","index":0,"n_rows":43,"n_cols":4,"rows_kept":43,"cut":false,"hidden":false,"merged":[[29,0,29,3],[41,0,41,3],[42,0,42,3],[30,0,30,3],[31,0,31,3],[32,0,32,3],[33,0,33,3],[34,0,34,3],[35,0,35,3],[36,0,36,3],[37,0,37,3],[38,0,38,3],[39,0,39,3],[40,0,40,3],[0,0,0,1],[9,0,10,0],[9,1,9,2],[7,0,7,3],[8,0,8,2]]}
["Sprache / Langue / Lingua / Language"]
[]
[]
[]
[]
[]
[]
[{"$f":"VLOOKUP(\"<T1_Ti>\",Uebersetzungen!$B$3:$F$33,Uebersetzungen!$B$2+1,FALSE)","v":"Average annual inflation*"}]
[{"$f":"VLOOKUP(\"<T1_UTi>\",Uebersetzungen!$B$3:$F$33,Uebersetzungen!$B$2+1,FALSE)","v":"Swiss Residential Property Price Index, IMPI"},null,null,"T 6"]
[{"$f":"VLOOKUP(\"<T1_SpaltenTitel_1>\",Uebersetzungen!$B$3:$F$33,Uebersetzungen!$B$2+1,FALSE)","v":"Total index \nand sub-indices "},{"$f":"VLOOKUP(\"<T1_SpaltenTitel_2>\",Uebersetzungen!$B$3:$F$33,Uebersetzungen!$B$2+1,FALSE)","v":"Average annual indices\n(Base: Q4 2019 = 100)"},null,{"$f":"VLOOKUP(\"<T1_SpaltenTitel_3>\",Uebersetzungen!$B$3:$F$33,Uebersetzungen!$B$2+1,FALSE)","v":"Rates of change compared with the previous year (in %)"}]
[null,{"$f":"VLOOKUP(\"<T1_SpaltenTitel_4>\",Uebersetzungen!$B$3:$F$33,Uebersetzungen!$B$2+1,FALSE)","v":2019},{"$f":"VLOOKUP(\"<T1_SpaltenTitel_5>\",Uebersetzungen!$B$3:$F$33,Uebersetzungen!$B$2+1,FALSE)","v":2020},{"$f":"VLOOKUP(\"<T1_SpaltenTitel_6>\",Uebersetzungen!$B$3:$F$33,Uebersetzungen!$B$2+1,FALSE)","v":2020}]
[{"$f":"VLOOKUP(\"<Zeilentitel_1>\",Uebersetzungen!$B$3:$F$33,Uebersetzungen!$B$2+1,FALSE)","v":"Total"},98.508899999999997,100.9464,2.5]
[{"$f":"VLOOKUP(\"<Zeilentitel_4>\",Uebersetzungen!$B$3:$F$33,Uebersetzungen!$B$2+1,FALSE)","v":"Type of municipality 1"},97.581000000000003,100.85429999999999,3.4]
[{"$f":"VLOOKUP(\"<Zeilentitel_5>\",Uebersetzungen!$B$3:$F$33,Uebersetzungen!$B$2+1,FALSE)","v":"Type of municipality 2"},99.319900000000004,101.3832,2.1]
[{"$f":"VLOOKUP(\"<Zeilentitel_6>\",Uebersetzungen!$B$3:$F$33,Uebersetzungen!$B$2+1,FALSE)","v":"Type of municipality 3"},98.752099999999999,100.4148,1.7]
[{"$f":"VLOOKUP(\"<Zeilentitel_7>\",Uebersetzungen!$B$3:$F$33,Uebersetzungen!$B$2+1,FALSE)","v":"Type of municipality 4"},99.173599999999993,100.9657,1.8]
[{"$f":"VLOOKUP(\"<Zeilentitel_8>\",Uebersetzungen!$B$3:$F$33,Uebersetzungen!$B$2+1,FALSE)","v":"Type of municipality 5"},98.117599999999996,100.8867,2.8]
[{"$f":"VLOOKUP(\"<Zeilentitel_2>\",Uebersetzungen!$B$3:$F$33,Uebersetzungen!$B$2+1,FALSE)","v":"SFH"},98.463200000000001,101.2039,2.8]
[{"$f":"VLOOKUP(\"<Zeilentitel_4>\",Uebersetzungen!$B$3:$F$33,Uebersetzungen!$B$2+1,FALSE)","v":"Type of municipality 1"},97.710800000000006,101.97410000000001,4.4000000000000004]
[{"$f":"VLOOKUP(\"<Zeilentitel_5>\",Uebersetzungen!$B$3:$F$33,Uebersetzungen!$B$2+1,FALSE)","v":"Type of municipality 2"},98.981399999999994,101.173,2.2000000000000002]
[{"$f":"VLOOKUP(\"<Zeilentitel_6>\",Uebersetzungen!$B$3:$F$33,Uebersetzungen!$B$2+1,FALSE)","v":"Type of municipality 3"},98.159800000000004,100.2349,2.1]
[{"$f":"VLOOKUP(\"<Zeilentitel_7>\",Uebersetzungen!$B$3:$F$33,Uebersetzungen!$B$2+1,FALSE)","v":"Type of municipality 4"},99.004099999999994,100.6178,1.6]
[{"$f":"VLOOKUP(\"<Zeilentitel_8>\",Uebersetzungen!$B$3:$F$33,Uebersetzungen!$B$2+1,FALSE)","v":"Type of municipality 5"},98.391400000000004,101.3614,3]
[{"$f":"VLOOKUP(\"<Zeilentitel_3>\",Uebersetzungen!$B$3:$F$33,Uebersetzungen!$B$2+1,FALSE)","v":"CONDO"},98.553100000000001,100.70740000000001,2.2000000000000002]
[{"$f":"VLOOKUP(\"<Zeilentitel_4>\",Uebersetzungen!$B$3:$F$33,Uebersetzungen!$B$2+1,FALSE)","v":"Type of municipality 1"},97.480800000000002,99.9589,2.5]
[{"$f":"VLOOKUP(\"<Zeilentitel_5>\",Uebersetzungen!$B$3:$F$33,Uebersetzungen!$B$2+1,FALSE)","v":"Type of municipality 2"},99.580600000000004,101.5241,2]
[{"$f":"VLOOKUP(\"<Zeilentitel_6>\",Uebersetzungen!$B$3:$F$33,Uebersetzungen!$B$2+1,FALSE)","v":"Type of municipality 3"},99.1631,100.5423,1.4]
[{"$f":"VLOOKUP(\"<Zeilentitel_7>\",Uebersetzungen!$B$3:$F$33,Uebersetzungen!$B$2+1,FALSE)","v":"Type of municipality 4"},99.384500000000003,101.3699,2]
[{"$f":"VLOOKUP(\"<Zeilentitel_8>\",Uebersetzungen!$B$3:$F$33,Uebersetzungen!$B$2+1,FALSE)","v":"Type of municipality 5"},97.672700000000006,100.1673,2.6]
[{"$f":"VLOOKUP(\"<T1_SpaltenTitel_7>\",Uebersetzungen!B:F,Uebersetzungen!$B$2+1,FALSE)","v":"* The average annual inflation corresponds to the rate of change between the annual average of the current year and the annual average of the previous year. The annual average is equal to the arithmetic mean of the four quarterly indices of the calendar year."}]
[{"$f":"VLOOKUP(\"<Legende_1>\",Uebersetzungen!$B$3:$F$33,Uebersetzungen!$B$2+1,FALSE)","v":"Legend:"}]
[{"$f":"VLOOKUP(\"<Legende_2>\",Uebersetzungen!$B$3:$F$33,Uebersetzungen!$B$2+1,FALSE)","v":"Total - Residential property (SFH and CONDO)"}]
[{"$f":"VLOOKUP(\"<Legende_3>\",Uebersetzungen!$B$3:$F$33,Uebersetzungen!$B$2+1,FALSE)","v":"SFH - Single-family houses"}]
[{"$f":"VLOOKUP(\"<Legende_4>\",Uebersetzungen!$B$3:$F$33,Uebersetzungen!$B$2+1,FALSE)","v":"CONDO - Condominiums"}]
[{"$f":"VLOOKUP(\"<Legende_5>\",Uebersetzungen!$B$3:$F$33,Uebersetzungen!$B$2+1,FALSE)","v":"Type of municipality 1 - Urban municipality of a large agglomeration"}]
[{"$f":"VLOOKUP(\"<Legende_6>\",Uebersetzungen!$B$3:$F$33,Uebersetzungen!$B$2+1,FALSE)","v":"Type of municipality 2 - Urban  municipality of a medium-sized agglomeration"}]
[{"$f":"VLOOKUP(\"<Legende_7>\",Uebersetzungen!$B$3:$F$33,Uebersetzungen!$B$2+1,FALSE)","v":"Type of municipality 3 - Urban municipality of a small or outside agglomeration"}]
[{"$f":"VLOOKUP(\"<Legende_8>\",Uebersetzungen!$B$3:$F$33,Uebersetzungen!$B$2+1,FALSE)","v":"Type of municipality 4 - Intermediate municipality"}]
[{"$f":"VLOOKUP(\"<Legende_9>\",Uebersetzungen!$B$3:$F$33,Uebersetzungen!$B$2+1,FALSE)","v":"Type of municipality 5 - Rural municipality"}]
[]
[{"$f":"VLOOKUP(\"<Quelle>\",Uebersetzungen!$B$3:$F$33,Uebersetzungen!$B$2+1,FALSE)","v":"Sources: FSO - Swiss Residential Property Price Index, IMPI"}]
[{"$f":"VLOOKUP(\"<CopyRight>\",Uebersetzungen!$B$3:$F$33,Uebersetzungen!$B$2+1,FALSE)","v":"© FSO 2021"}]
[{"$f":"VLOOKUP(\"<Auskunft>\",Uebersetzungen!$B$3:$F$33,Uebersetzungen!$B$2+1,FALSE)","v":"Information: Federal Statistical Office (FSO), IMPI@bfs.admin.ch, Tel. +41 58 463 60 69 "}]

{"sheet":"Uebersetzungen","index":1,"n_rows":33,"n_cols":6,"rows_kept":33,"cut":false,"hidden":true,"merged":[]}
["Tabelle","Code","DE","FR","IT","EN"]
["Sprache",4]
["T6","<T1_Ti>","Durchschnittliche Jahresteuerung*","Renchérissement annuel moyen*","Rincaro annuo medio*","Average annual inflation*"]
[null,"<T1_UTi>","Schweizerischer Wohnimmobilienpreisindex, IMPI ","Indice suisse des prix de l'immobilier résidentiel, IMPI","Indice svizzero dei prezzi degli immobili residenziali, IMPI","Swiss Residential Property Price Index, IMPI"]
[null,"<T1_SpaltenTitel_1>","Totalindex \nund Subindizes","Indice total \net sous-indices","Indice totale \ne sottoindici","Total index \nand sub-indices "]
[null,"<T1_SpaltenTitel_2>","Durchschnittliche Jahresindizes \n(Basis Q4 2019 = 100)","Indices annuels moyens\n(Base: 4e trim. 2019 = 100)","Indici annuali medi\n(base: 4° trim. 2019 = 100)","Average annual indices\n(Base: Q4 2019 = 100)"]
[null,"<T1_SpaltenTitel_3>","Veränderungsrate gegenüber dem Vorjahr (in %) ","Taux de variation par rapport à l'année précédente (en %)","Tassi di variazione rispetto all'anno precedente (in %)","Rates of change compared with the previous year (in %)"]
[null,"<T1_SpaltenTitel_4>",2019,2019,2019,2019]
[null,"<T1_SpaltenTitel_5>",2020,2020,2020,2020]
[null,"<T1_SpaltenTitel_6>",2020,2020,2020,2020]
[null,"<T1_SpaltenTitel_7>","* Die durchschnittliche Jahresteuerung entspricht der Veränderungsrate zwischen dem Jahresmittel des aktuellen Jahres und dem Jahresmittel des Vorjahres. Das Jahresmittel berechnet sich als arithmetisches Mittel der vier Quartalsindizes des Kalenderjahres. ","* Le renchérissement annuel moyen correspond au taux de variation entre la moyenne annuelle de l'année actuelle et la moyenne annuelle de l'année précédente. La moyenne annuelle équivaut à la moyenne arithmétique des quatre indices trimestriels de l’année civile.","* Il rincaro annuo medio corrisponde al tasso di variazione tra la media annuale dell'anno in corso e la media annuale dell'anno precedente. La media annuale equivale alla media aritmetica dei quattro indici trimestrali dell’anno civile.","* The average annual inflation corresponds to the rate of change between the annual average of the current year and the annual average of the previous year. The annual average is equal to the arithmetic mean of the four quarterly indices of the calendar year."]
[]
["T1-T6","<Zeilentitel_1>","Total ","Total ","Totale ","Total"]
[null,"<Zeilentitel_2>","EFH","MI","CU","SFH"]
[null,"<Zeilentitel_3>","EGW","PPE","APP","CONDO"]
[null,"<Zeilentitel_4>","GemeindeTyp 1","Type de communes 1","Tipo di Comune 1","Type of municipality 1"]
[null,"<Zeilentitel_5>","GemeindeTyp 2","Type de communes 2","Tipo di Comune 2","Type of municipality 2"]
[null,"<Zeilentitel_6>","GemeindeTyp 3","Type de communes 3","Tipo di Comune 3","Type of municipality 3"]
[null,"<Zeilentitel_7>","GemeindeTyp 4","Type de communes 4","Tipo di Comune 4","Type of municipality 4"]
[null,"<Zeilentitel_8>","GemeindeTyp 5","Type de communes 5","Tipo di Comune 5","Type of municipality 5"]
[]
[null,"<Legende_1>","Legende:","Légende:","Legenda:","Legend:"]
[null,"<Legende_2>","Total - Wohneigentum (EFH und EGW)","Total - Logements en propriété (MI et PPE)","Totale - Proprietà residenziale (CU e APP)","Total - Residential property (SFH and CONDO)"]
[null,"<Legende_3>","EFH - Einfamilienhäuser","MI - Maisons individuelles","CU - Case unifamiliari","SFH - Single-family houses"]
[null,"<Legende_4>","EGW - Eigentumswohnungen ","PPE - Appartements en propriété","APP - Appartementi di proprietà","CONDO - Condominiums"]
[null,"<Legende_5>","GemeindeTyp 1 - Städtische Gemeinde einer grossen Agglomeration","Type de communes 1 - Commune urbaine d'une grande agglomération ","Tipo di Comune 1 - Comune urbano di un grande agglomerato","Type of municipality 1 - Urban municipality of a large agglomeration"]
[null,"<Legende_6>","GemeindeTyp 2 - Städtische Gemeinde einer mittelgrossen Agglomeration","Type de communes 2 - Commune urbaine d'une agglomération moyenne","Tipo di Comune 2 - Comune urbano di un agglomerato medio","Type of municipality 2 - Urban  municipality of a medium-sized agglomeration"]
[null,"<Legende_7>","GemeindeTyp 3 - Städtische Gemeinde einer kleinen oder ausserhalb einer Agglomeration","Type de communes 3 - Commune urbaine d'une petite ou hors agglomération","Tipo di Comune 3 - Comune urbano di un piccolo/fuori agglomerato","Type of municipality 3 - Urban municipality of a small or outside agglomeration"]
[null,"<Legende_8>","GemeindeTyp 4 - Intermediäre Gemeinde ","Type de communes 4 - Commune intermédiaire ","Tipo di Comune 4 - Comune intermedio ","Type of municipality 4 - Intermediate municipality"]
[null,"<Legende_9>","GemeindeTyp 5 - Ländliche Gemeinde","Type de communes 5 - Commune rurale","Tipo di Comune 5 - Comune rurale","Type of municipality 5 - Rural municipality"]
[null,"<Quelle>","Quelle: BFS - Schweizerischer Wohnimmobilienpreisindex, IMPI","Sources: OFS - Indice suisse des prix de l'immobilier résidentiel, IMPI","Fonti: UST - Indice svizzero dei prezzi degli immobili residenziali, IMPI","Sources: FSO - Swiss Residential Property Price Index, IMPI"]
[null,"<CopyRight>","© BFS 2021","© OFS 2021","© UST 2021","© FSO 2021"]
[null,"<Auskunft>","Auskunft: Bundesamt für Statistik (BFS), IMPI@bfs.admin.ch, Tel. +41 58 463 60 69","Renseignements: Office fédéral de la statistique (OFS), IMPI@bfs.admin.ch, Tel. +41 58 463 60 69","Informazioni: Ufficio federale di statistica (UST), IMPI@bfs.admin.ch, tel. +41 58 463 60 69","Information: Federal Statistical Office (FSO), IMPI@bfs.admin.ch, Tel. +41 58 463 60 69 "]